fUSD/lending_fUSD_20250519
["ID","MTS","AMOUNT","RATE_DAILY","PERIOD"]
[361571742,1747619441133,-400.0,0.00013698,2]
[361571743,1747619441142,-866.21,0.00013698,2]
[361571744,1747619441151,-400.0,0.00013698,2]
[361571745,1747619441160,-400.0,0.00013698,2]
[361571746,1747619441169,-400.0,0.00013698,2]
[361571747,1747619441178,-400.84375108,0.00013698,2]
[361571748,1747619441187,-462.07165366,0.00013698,2]
[361571749,1747619441196,-1828.42,0.00013698,2]
[361571750,1747619441205,-405.36058729,0.00013698,2]
[361571751,1747619441215,-400.0,0.00013698,2]
[361571752,1747619441224,-405.29175244,0.00013698,2]
[361571753,1747619441233,-400.0,0.00013698,2]
[361571754,1747619441241,-400.0,0.00013698,2]
[361571755,1747619441251,-1211.06,0.00013698,2]
[361571756,1747619441260,-401.26581884,0.00013698,2]
[361571757,1747619441269,-1372.19,0.00013698,2]
[361571758,1747619441278,-400.0,0.00013698,2]
[361571759,1747619441287,-400.0,0.00013698,2]
[361571760,1747619441296,-624.89,0.00013698,2]
[361571761,1747619441306,-579.31,0.00013698,2]
[361571762,1747619441315,-401.25360387,0.00013698,2]
[361571763,1747619441324,-400.0,0.00013698,2]
[361571764,1747619441334,-400.0,0.00013698,2]
[361571765,1747619441343,-400.98634136,0.00013698,2]
[361571766,1747619441352,-400.0,0.00013698,2]
[361571767,1747619441361,-400.5081936,0.00013698,2]
[361571768,1747619441370,-400.0,0.00013698,2]
[361571769,1747619441380,-400.0,0.00013698,2]
[361571770,1747619441389,-400.0,0.00013698,2]
[361571771,1747619441398,-676.3,0.00013698,2]
[361571772,1747619441407,-566.22,0.00013698,2]
[361571773,1747619441416,-1475.59,0.00013698,2]
[361571774,1747619441426,-893.71,0.00013698,2]
[361571775,1747619441435,-540.78192783,0.00013698,2]
[361571776,1747619441444,-420.76589711,0.00013698,2]
[361571777,1747619441453,-400.0,0.00013698,2]
[361571778,1747619441462,-617.18,0.00013698,2]
[361571779,1747619441471,-1123.84,0.00013698,2]
[361571780,1747619441480,-400.0,0.00013698,2]
[361571781,1747619441490,-640.78,0.00013698,2]
[361571782,1747619441498,-400.0,0.00013698,2]
[361571783,1747619441507,-400.0,0.00013698,2]
[361571784,1747619441517,-400.0,0.00013698,2]
[361571785,1747619441526,-750.54,0.00013698,2]
[361571786,1747619441535,-832.78,0.00013698,2]
[361571787,1747619441545,-422.51055954,0.00013698,2]
[361571788,1747619441554,-400.0,0.00013698,2]
[361571789,1747619441563,-540.36,0.00013698,2]
[361571790,1747619441572,-400.0,0.00013698,2]
[361571791,1747619441581,-400.34667071,0.00013698,2]
[361571792,1747619441591,-568.02,0.00013698,2]
[361571793,1747619441746,-406.61584979,0.00013698,2]
[361571794,1747619441757,-400.0,0.00013698,2]
[361571795,1747619441766,-400.0,0.00013698,2]
[361571796,1747619441775,-529.1,0.00013698,2]
[361571797,1747619441791,-400.0,0.00013698,2]
[361571798,1747619441800,-400.0,0.00013698,2]
[361571799,1747619441810,-518.81,0.00013698,2]
[361571800,1747619441819,-400.0,0.00013698,2]
[361571801,1747619441830,-400.0,0.00013698,2]
[361571802,1747619441840,-400.0,0.00013698,2]
[361571803,1747619441849,-888.13,0.00013698,2]
[361571804,1747619441859,-506.4325577,0.00013698,2]
[361571805,1747619441869,-400.0,0.00013698,2]
[361571806,1747619441878,-400.0,0.00013698,2]
[361571807,1747619441887,-1052.06,0.00013698,2]
[361571808,1747619441896,-534.41,0.00013698,2]
[361571809,1747619441906,-400.0,0.00013698,2]
[361571810,1747619441915,-677.97,0.00013698,2]
[361571811,1747619441924,-586.41,0.00013698,2]
[361571812,1747619441933,-400.0,0.00013698,2]
[361571813,1747619441943,-720.1,0.00013698,2]
[361571814,1747619441952,-431.0,0.00013698,2]
[361571815,1747619441962,-425.68710645,0.00013698,2]
[361571816,1747619441971,-577.99,0.00013698,2]
[361571817,1747619441981,-400.0,0.00013698,2]
[361571818,1747619441990,-400.0,0.00013698,2]
[361571819,1747619442000,-400.0,0.00013698,2]
[361571820,1747619442009,-433.55,0.00013698,2]
[361571821,1747619442019,-400.0,0.00013698,2]
[361571822,1747619442236,-836.31,0.00013698,2]
[361571823,1747619442246,-405.22399002,0.00013698,2]
[361571824,1747619442255,-400.0,0.00013698,2]
[361571825,1747619442265,-438.86,0.00013698,2]
[361571826,1747619442274,-399.00221454,0.00013698,2]
[361571827,1747619442284,-528.9,0.00013698,2]
[361571828,1747619442294,-691.36,0.00013698,2]
[361571829,1747619442304,-404.65890343,0.00013698,2]
[361571830,1747619442314,-400.0,0.00013698,2]
[361571831,1747619442323,-400.0,0.00013698,2]
[361571833,1747619442333,-456.57150316,0.00013698,2]
[361571834,1747619442343,-400.0,0.00013698,2]
[361571836,1747619442352,-400.0,0.00013698,2]
[361571838,1747619442362,-551.51,0.00013698,2]
[361571839,1747619442371,-448.29785865,0.00013698,2]
[361571840,1747619442381,-443.67,0.00013698,2]
[361571841,1747619442391,-933.06,0.00013698,2]
[361571842,1747619442400,-1407.76,0.00013698,2]
[361571843,1747619442410,-400.0,0.00013698,2]
[361571845,1747619442419,-500.17,0.00013698,2]
[361571847,1747619442428,-400.0,0.00013698,2]
[361571849,1747619442438,-404.06034832,0.00013698,2]
[361571850,1747619442447,-333.68283292,0.00013698,2]
[361571851,1747619442457,-400.0,0.00013698,2]
[361571852,1747619442467,-400.0,0.00013698,2]
[361571853,1747619442476,-429.21,0.00013698,2]
[361571854,1747619442488,-404.35337207,0.00013698,2]
[361571855,1747619442498,-743.21,0.00013698,2]
[361571856,1747619442508,-479.41,0.00013698,2]
[361571857,1747619442519,-506.81,0.00013698,2]
[361571858,1747619442528,-402.32423382,0.00013698,2]
[361571859,1747619442539,-400.0,0.00013698,2]
[361571860,1747619442549,-718.43,0.00013698,2]
[361571861,1747619442558,-628.11,0.00013698,2]
[361571862,1747619442568,-400.0,0.00013698,2]
[361571863,1747619442577,-400.0,0.00013698,2]
[361571864,1747619442586,-719.2,0.00013698,2]
[361571865,1747619442596,-400.0,0.00013698,2]
[361571866,1747619442605,-1291.11,0.00013698,2]
[361571867,1747619442614,-651.33,0.00013698,2]
[361571868,1747619442624,-400.0,0.00013698,2]
[361571869,1747619442633,-757.14,0.00013698,2]
[361571870,1747619442642,-400.0,0.00013698,2]
[361571871,1747619442651,-637.62,0.00013698,2]
[361571872,1747619442661,-1203.08,0.00013698,2]
[361571873,1747619442670,-500.0,0.00013698,2]
[361571874,1747619442681,-500.0,0.00013698,2]
[361571875,1747619442690,-526.46842403,0.00013698,2]
[361571876,1747619442699,-547.88,0.00013698,2]
[361571877,1747619442709,-493.27,0.00013698,2]
[361571878,1747619442718,-400.0,0.00013698,2]
[361571879,1747619442727,-400.0,0.00013698,2]
[361571880,1747619442737,-409.99901255,0.00013698,2]
[361571881,1747619442746,-2141.24,0.00013698,2]
[361571882,1747619442756,-400.0,0.00013698,2]
[361571883,1747619442765,-2104.07,0.00013698,2]
[361571884,1747619442775,-400.0,0.00013698,2]
[361571885,1747619442788,-451.84,0.00013698,2]
[361571886,1747619442797,-400.0,0.00013698,2]
[361571887,1747619442806,-400.0,0.00013698,2]
[361571888,1747619442815,-400.0,0.00013698,2]
[361571889,1747619442824,-400.0,0.00013698,2]
[361571890,1747619442833,-875.03,0.00013698,2]
[361571891,1747619442843,-400.0,0.00013698,2]
[361571892,1747619442852,-400.0,0.00013698,2]
[361571893,1747619442861,-400.0,0.00013698,2]
[361571894,1747619442870,-400.0,0.00013698,2]
[361571895,1747619442880,-1283.41,0.00013698,2]
[361571896,1747619442890,-400.0,0.00013698,2]
[361571897,1747619442899,-400.0,0.00013698,2]
[361571898,1747619442909,-400.0,0.00013698,2]
[361571899,1747619442918,-400.0,0.00013698,2]
[361571900,1747619442928,-400.0,0.00013698,2]
[361571901,1747619442937,-400.0,0.00013698,2]
[361571902,1747619442947,-420.78677551,0.00013698,2]
[361571903,1747619442956,-400.0,0.00013698,2]
[361571904,1747619442966,-1226.14,0.00013698,2]
[361571905,1747619442975,-400.0,0.00013698,2]
[361571906,1747619442985,-400.0,0.00013698,2]
[361571907,1747619442995,-400.0,0.00013698,2]
[361571908,1747619443004,-400.0,0.00013698,2]
[361571909,1747619443013,-400.0,0.00013698,2]
[361571910,1747619443023,-562.93,0.00013698,2]
[361571911,1747619443032,-400.0,0.00013698,2]
[361571912,1747619443042,-401.09969137,0.00013698,2]
[361571913,1747619443051,-644.5,0.00013698,2]
[361571914,1747619443061,-400.0,0.00013698,2]
[361571916,1747619443071,-465.05,0.00013698,2]
[361571918,1747619443080,-403.08340454,0.00013698,2]
[361571920,1747619443090,-574.32,0.00013698,2]
[361571922,1747619443099,-400.0,0.00013698,2]
[361571924,1747619443109,-319.39822178,0.00013698,2]
[361571926,1747619443119,-402.0663083,0.00013698,2]
[361571928,1747619443129,-680.13,0.00013698,2]
[361571929,1747619443138,-400.0,0.00013698,2]
[361571930,1747619443148,-1356.27,0.00013698,2]
[361571931,1747619443157,-401.45784222,0.00013698,2]
[361571932,1747619443166,-923.14,0.00013698,2]
[361571933,1747619443177,-401.69164129,0.00013698,2]
[361571934,1747619443186,-1230.49,0.00013698,2]
[361571935,1747619443197,-400.91900397,0.00013698,2]
[361571936,1747619443206,-524.06164218,0.00013698,2]
[361571937,1747619443215,-400.0,0.00013698,2]
[361571938,1747619443225,-415.57,0.00013698,2]
[361571939,1747619443235,-400.0,0.00013698,2]
[361571940,1747619443244,-400.0,0.00013698,2]
[361571941,1747619443254,-404.76137579,0.00013698,2]
[361571942,1747619443264,-498.23,0.00013698,2]
[361571943,1747619443274,-400.0,0.00013698,2]
[361571944,1747619443283,-404.0813819,0.00013698,2]
[361571945,1747619443293,-544.90536706,0.00013698,2]
[361571946,1747619443303,-402.16602146,0.00013698,2]
[361571947,1747619443312,-400.0,0.00013698,2]
[361571948,1747619443321,-154.07973742,0.00013698,2]
[361571949,1747619443331,-550.01,0.00013698,2]
[361571950,1747619443343,-400.0,0.00013698,2]
[361571951,1747619443352,-400.0,0.00013698,2]
[361571952,1747619443362,-408.71748484,0.00013698,2]
[361571953,1747619443371,-527.24,0.00013698,2]
[361571954,1747619443381,-368.23060449,0.00013698,2]
[361571955,1747619443390,-16579.66,0.00013698,2]
[361571956,1747619443399,-400.0,0.00013698,2]
[361571957,1747619443409,-400.0,0.00013698,2]
[361571958,1747619443419,-400.0,0.00013698,2]
[361571959,1747619443429,-401.02029105,0.00013698,2]
[361571960,1747619443439,-400.0,0.00013698,2]
[361571961,1747619443448,-400.0,0.00013698,2]
[361571962,1747619443458,-2704.88,0.00013698,2]
[361571963,1747619443467,-400.0,0.00013698,2]
[361571964,1747619443477,-3749.79,0.00013698,2]
[361571965,1747619443487,-888.82,0.00013698,2]
[361571966,1747619443497,-400.0,0.00013698,2]
[361571967,1747619443507,-342.04426382,0.00013698,2]
[361571968,1747619443516,-400.0,0.00013698,2]
[361571969,1747619443525,-400.0,0.00013698,2]
[361571970,1747619443535,-1117.1,0.00013698,2]
[361571971,1747619443545,-1255.89,0.00013698,2]
[361571972,1747619443554,-401.43539256,0.00013698,2]
[361571973,1747619443564,-500.0,0.00013698,2]
[361571974,1747619443573,-405.62833291,0.00013698,2]
[361571975,1747619443582,-500.0,0.00013698,2]
[361571976,1747619443591,-400.0,0.00013698,2]
[361571977,1747619443600,-500.0,0.00013698,2]
[361571978,1747619443609,-500.0,0.00013698,2]
[361571979,1747619443619,-727.05,0.00013698,2]
[361571980,1747619443629,-400.0,0.00013698,2]
[361571981,1747619443640,-401.31149845,0.00013698,2]
[361571982,1747619443651,-400.0,0.00013698,2]
[361571983,1747619443663,-400.0,0.00013698,2]
[361571984,1747619443674,-1295.1,0.00013698,2]
[361571985,1747619443685,-400.0,0.00013698,2]
[361571986,1747619443695,-534.99,0.00013698,2]
[361571987,1747619443706,-403.67800251,0.00013698,2]
[361571988,1747619443718,-404.83494171,0.00013698,2]
[361571989,1747619443727,-400.0,0.00013698,2]
[361571990,1747619443737,-472.32,0.00013698,2]
[361571991,1747619443747,-400.0,0.00013698,2]
[361571992,1747619443759,-567.51,0.00013698,2]
[361571993,1747619443771,-261.127666,0.00013698,2]
[361571994,1747619443782,-1201.31,0.00013698,2]
[361571995,1747619443794,-400.0,0.00013698,2]
[361571996,1747619443805,-401.24900847,0.00013698,2]
[361571997,1747619443815,-1266.68,0.00013698,2]
[361571998,1747619443826,-1321.77,0.00013698,2]
[361571999,1747619443835,-448.93270365,0.00013698,2]
[361572000,1747619443844,-400.0,0.00013698,2]
[361572001,1747619443853,-400.0,0.00013698,2]
[361572002,1747619443864,-400.0,0.00013698,2]
[361572003,1747619443874,-507.08287521,0.00013698,2]
[361572004,1747619443883,-400.0,0.00013698,2]
[361572005,1747619443893,-401.24803797,0.00013698,2]
[361572006,1747619443904,-2637.41,0.00013698,2]
[361572007,1747619443913,-523.72,0.00013698,2]
[361572008,1747619443923,-400.0,0.00013698,2]
[361572009,1747619443932,-400.0,0.00013698,2]
[361572010,1747619443942,-400.0,0.00013698,2]
[361572011,1747619443951,-400.0,0.00013698,2]
[361572012,1747619443960,-739.71,0.00013698,2]
[361572013,1747619443969,-401.04565846,0.00013698,2]
[361572014,1747619443979,-412.87892558,0.00013698,2]
[361572015,1747619443988,-400.0,0.00013698,2]
[361572016,1747619443998,-878.2,0.00013698,2]
[361572017,1747619444006,-3557.65,0.00013698,2]
[361572018,1747619444015,-411.30204891,0.00013698,2]
[361572019,1747619444024,-400.0,0.00013698,2]
[361572020,1747619444034,-400.0,0.00013698,2]
[361572021,1747619444043,-400.14891288,0.00013698,2]
[361572022,1747619444052,-403.43045189,0.00013698,2]
[361572023,1747619444061,-403.09285762,0.00013698,2]
[361572024,1747619444070,-831.86,0.00013698,2]
[361572025,1747619444079,-400.0,0.00013698,2]
[361572026,1747619444089,-659.93,0.00013698,2]
[361572027,1747619444098,-445.79697911,0.00013698,2]
[361572028,1747619444107,-434.25,0.00013698,2]
[361572029,1747619444116,-8461.75,0.00013698,2]
[361572030,1747619444126,-401.46678046,0.00013698,2]
[361572031,1747619444134,-1696.84,0.00013698,2]
[361572032,1747619444143,-778.68,0.00013698,2]
[361572033,1747619444153,-400.0,0.00013698,2]
[361572034,1747619444162,-502.39126886,0.00013698,2]
[361572035,1747619444171,-1086.63,0.00013698,2]
[361572036,1747619444180,-404.84471653,0.00013698,2]
[361572037,1747619444190,-400.0,0.00013698,2]
[361572038,1747619444199,-400.70418178,0.00013698,2]
[361572039,1747619444209,-401.90098463,0.00013698,2]
[361572040,1747619444515,-400.0,0.00013698,2]
[361572041,1747619444540,-410.43202341,0.00013698,2]
[361572042,1747619444550,-1169.95,0.00013698,2]
[361572043,1747619444560,-400.0,0.00013698,2]
[361572044,1747619444570,-1011.74,0.00013698,2]
[361572045,1747619444580,-496.51,0.00013698,2]
[361572046,1747619444589,-400.0,0.00013698,2]
[361572047,1747619444598,-1035.33,0.00013698,2]
[361572048,1747619444608,-504.58,0.00013698,2]
[361572049,1747619444619,-402.99934888,0.00013698,2]
[361572050,1747619444630,-1371.14,0.00013698,2]
[361572051,1747619444639,-1003.84,0.00013698,2]
[361572052,1747619444651,-779.99,0.00013698,2]
[361572053,1747619444662,-640.7,0.00013698,2]
[361572054,1747619444672,-404.43934112,0.00013698,2]
[361572055,1747619444683,-801.68,0.00013698,2]
[361572056,1747619444692,-502.01,0.00013698,2]
[361572057,1747619444703,-531.94,0.00013698,2]
[361572058,1747619444715,-400.0,0.00013698,2]
[361572059,1747619444724,-350.17638948,0.00013698,2]
[361572060,1747619444735,-721.56,0.00013698,2]
[361572061,1747619444746,-400.0,0.00013698,2]
[361572062,1747619444755,-442.1,0.00013698,2]
[361572063,1747619444764,-4294.51,0.00013698,2]
[361572064,1747619444775,-401.3478798,0.00013698,2]
[361572065,1747619444785,-1448.95,0.00013698,2]
[361572066,1747619444795,-3010.95,0.00013698,2]
[361572067,1747619444812,-935.99,0.00013698,2]
[361572068,1747619444824,-628.63,0.00013698,2]
[361572069,1747619444834,-404.50075903,0.00013698,2]
[361572070,1747619444844,-407.1085854,0.00013698,2]
[361572071,1747619444856,-405.54691951,0.00013698,2]
[361572072,1747619444867,-400.0,0.00013698,2]
[361572073,1747619444877,-404.39889168,0.00013698,2]
[361572074,1747619444887,-403.18411134,0.00013698,2]
[361572075,1747619444896,-676.12,0.00013698,2]
[361572076,1747619444905,-4191.06,0.00013698,2]
[361572077,1747619444915,-413.84373995,0.00013698,2]
[361572078,1747619444924,-400.0,0.00013698,2]
[361572079,1747619444933,-400.0,0.00013698,2]
[361572080,1747619444943,-400.0,0.00013698,2]
[361572081,1747619444952,-411.78141352,0.00013698,2]
[361572082,1747619444961,-400.0,0.00013698,2]
[361572083,1747619444971,-448.0,0.00013698,2]
[361572084,1747619444980,-400.0,0.00013698,2]
[361572085,1747619444989,-733.39,0.00013698,2]
[361572086,1747619444999,-400.0,0.00013698,2]
[361572087,1747619445008,-403.50548939,0.00013698,2]
[361572088,1747619445018,-1160.69,0.00013698,2]
[361572089,1747619445027,-400.0,0.00013698,2]
[361572090,1747619445036,-546.81,0.00013698,2]
[361572091,1747619445045,-1151.41,0.00013698,2]
[361572092,1747619445054,-2435.81,0.00013698,2]
[361572093,1747619445064,-400.0,0.00013698,2]
[361572094,1747619445073,-404.74826428,0.00013698,2]
[361572095,1747619445083,-414.2,0.00013698,2]
[361572096,1747619445092,-1810.58,0.00013698,2]
[361572097,1747619445101,-400.0,0.00013698,2]
[361572098,1747619445111,-1000.0,0.00013698,2]
[361572099,1747619445120,-1129.58,0.00013698,2]
[361572100,1747619445129,-400.0,0.00013698,2]
[361572101,1747619445138,-903.87,0.00013698,2]
[361572102,1747619445148,-400.0,0.00013698,2]
[361572103,1747619445158,-1468.5,0.00013698,2]
[361572104,1747619445167,-2660.32,0.00013698,2]
[361572105,1747619445176,-161.60108027,0.00013698,2]
[361572106,1747619445186,-400.0,0.00013698,2]
[361572107,1747619445196,-1350.2,0.00013698,2]
[361572108,1747619445206,-402.69292099,0.00013698,2]
[361572109,1747619445215,-400.0,0.00013698,2]
[361572110,1747619445225,-382.18764014,0.00013698,2]
[361572111,1747619445235,-488.62,0.00013698,2]
[361572112,1747619445246,-496.12,0.00013698,2]
[361572113,1747619445256,-400.95355859,0.00013698,2]
[361572114,1747619445266,-402.36090406,0.00013698,2]
[361572115,1747619445275,-501.24208203,0.00013698,2]
[361572116,1747619445287,-1345.81,0.00013698,2]
[361572117,1747619445296,-400.0,0.00013698,2]
[361572118,1747619445306,-280.71866992,0.00013698,2]
[361572119,1747619445315,-688.93,0.00013698,2]
[361572120,1747619445324,-400.0,0.00013698,2]
[361572121,1747619445335,-402.45969484,0.00013698,2]
[361572122,1747619445344,-744.91,0.00013698,2]
[361572123,1747619445354,-400.0,0.00013698,2]
[361572124,1747619445363,-400.0,0.00013698,2]
[361572125,1747619445372,-491.45,0.00013698,2]
[361572126,1747619445382,-825.71,0.00013698,2]
[361572127,1747619445391,-403.16074125,0.00013698,2]
[361572128,1747619445400,-1196.17,0.00013698,2]
[361572129,1747619445410,-400.0,0.00013698,2]
[361572130,1747619445419,-400.0,0.00013698,2]
[361572131,1747619445429,-402.05327015,0.00013698,2]
[361572132,1747619445439,-2571.78,0.00013698,2]
[361572133,1747619445449,-547.08,0.00013698,2]
[361572134,1747619445459,-400.0,0.00013698,2]
[361572135,1747619445468,-888.79,0.00013698,2]
[361572136,1747619445478,-1986.78,0.00013698,2]
[361572137,1747619445487,-546.15,0.00013698,2]
[361572138,1747619445497,-400.95375353,0.00013698,2]
[361572139,1747619445506,-404.00668347,0.00013698,2]
[361572140,1747619445516,-400.0,0.00013698,2]
[361572141,1747619445526,-794.67,0.00013698,2]
[361572142,1747619445536,-401.48679168,0.00013698,2]
[361572143,1747619445545,-942.45,0.00013698,2]
[361572144,1747619445555,-403.87684107,0.00013698,2]
[361572145,1747619445565,-400.77225585,0.00013698,2]
[361572146,1747619445574,-400.0,0.00013698,2]
[361572147,1747619445584,-908.05,0.00013698,2]
[361572148,1747619445593,-447.77,0.00013698,2]
[361572149,1747619445602,-400.0,0.00013698,2]
[361572150,1747619445612,-2295.4,0.00013698,2]
[361572151,1747619445621,-799.4,0.00013698,2]
[361572152,1747619445631,-460.38,0.00013698,2]
[361572153,1747619445641,-484.01,0.00013698,2]
[361572154,1747619445650,-415.86,0.00013698,2]
[361572155,1747619445660,-401.13989239,0.00013698,2]
[361572156,1747619445670,-400.0,0.00013698,2]
[361572157,1747619445679,-790.16,0.00013698,2]
[361572158,1747619445689,-721.23,0.00013698,2]
[361572159,1747619445699,-1025.17,0.00013698,2]
[361572160,1747619445708,-1220.68,0.00013698,2]
[361572161,1747619445718,-400.0,0.00013698,2]
[361572162,1747619445727,-1025.59,0.00013698,2]
[361572163,1747619445737,-1220.68,0.00013698,2]
[361572164,1747619445747,-1548.02,0.00013698,2]
[361572165,1747619445756,-404.18,0.00013698,2]
[361572166,1747619445765,-1412.43,0.00013698,2]
[361572167,1747619445776,-1137.48,0.00013698,2]
[361572168,1747619445786,-400.0,0.00013698,2]
[361572169,1747619445796,-1517.0,0.00013698,2]
[361572170,1747619445812,-221.78189301,0.00013698,2]
[361572171,1747619445821,-409.52034372,0.00013698,2]
[361572172,1747619445832,-400.0,0.00013698,2]
[361572173,1747619445843,-400.0,0.00013698,2]
[361572174,1747619445857,-297.85,0.00013698,2]
[361572175,1747619445868,-400.0,0.00013698,2]
[361572176,1747619445879,-516.3614584,0.00013698,2]
[361572177,1747619445889,-3559.65,0.00013698,2]
[361572178,1747619445899,-805.83,0.00013698,2]
[361572179,1747619445910,-400.0,0.00013698,2]
[361572180,1747619445920,-734.46,0.00013698,2]
[361572181,1747619445931,-13174.73,0.00013698,2]
[361572182,1747619445940,-11317.81,0.00013698,2]
[361572183,1747619445949,-1155.93,0.00013698,2]
[361572184,1747619445959,-400.0,0.00013698,2]
[361572185,1747619445969,-748.03,0.00013698,2]
[361572186,1747619445978,-402.28109035,0.00013698,2]
[361572187,1747619445988,-1458.29,0.00013698,2]
[361572188,1747619445997,-400.0,0.00013698,2]
[361572189,1747619446007,-400.0,0.00013698,2]
[361572190,1747619446017,-1426.27,0.00013698,2]
[361572191,1747619446026,-302.1070446,0.00013698,2]
[361572192,1747619446035,-502.6,0.00013698,2]
[361572193,1747619446045,-400.0,0.00013698,2]
[361572194,1747619446055,-402.26786144,0.00013698,2]
[361572195,1747619446065,-542.71,0.00013698,2]
[361572196,1747619446075,-2046.62,0.00013698,2]
[361572197,1747619446084,-714.8,0.00013698,2]
[361572198,1747619446094,-400.0,0.00013698,2]
[361572199,1747619446103,-400.0,0.00013698,2]
[361572200,1747619446113,-400.0,0.00013698,2]
[361572201,1747619446122,-1725.9,0.00013698,2]
[361572202,1747619446131,-400.0,0.00013698,2]
[361572203,1747619446141,-400.0,0.00013698,2]
[361572204,1747619446150,-400.0,0.00013698,2]
[361572205,1747619446160,-400.0,0.00013698,2]
[361572206,1747619446169,-400.0,0.00013698,2]
[361572207,1747619446178,-453.49,0.00013698,2]
[361572208,1747619446187,-710.04,0.00013698,2]
[361572209,1747619446197,-2110.33,0.00013698,2]
[361572210,1747619446207,-578.05,0.00013698,2]
[361572211,1747619446216,-658.52,0.00013698,2]
[361572212,1747619446225,-1002.63,0.00013698,2]
[361572213,1747619446234,-8970.39,0.00013698,2]
[361572214,1747619446244,-881.04,0.00013698,2]
[361572215,1747619446253,-400.0,0.00013698,2]
[361572216,1747619446263,-1162.38,0.00013698,2]
[361572217,1747619446272,-415.35,0.00013698,2]
[361572218,1747619446281,-663.23,0.00013698,2]
[361572219,1747619446291,-447.88,0.00013698,2]
[361572220,1747619446300,-400.0,0.00013698,2]
[361572221,1747619446309,-928.88,0.00013698,2]
[361572222,1747619446319,-872.75,0.00013698,2]
[361572223,1747619446328,-400.0,0.00013698,2]
[361572224,1747619446337,-408.53680582,0.00013698,2]
[361572225,1747619446346,-400.0,0.00013698,2]
[361572226,1747619446355,-643.97,0.00013698,2]
[361572227,1747619446365,-752.54,0.00013698,2]
[361572228,1747619446374,-404.1224814,0.00013698,2]
[361572229,1747619446384,-208.56455136,0.00013698,2]
[361572230,1747619446393,-571.88,0.00013698,2]
[361572231,1747619446402,-942.51,0.00013698,2]
[361572232,1747619446412,-1954.7,0.00013698,2]
[361572233,1747619446421,-1890.73,0.00013698,2]
[361572234,1747619446431,-400.0,0.00013698,2]
[361572235,1747619446440,-400.0,0.00013698,2]
[361572236,1747619446450,-279.28803132,0.00013698,2]
[361572237,1747619446458,-683.97,0.00013698,2]
[361572238,1747619446468,-4263.5,0.00013698,2]
[361572239,1747619446477,-400.0,0.00013698,2]
[361572240,1747619446487,-1081.36,0.00013698,2]
[361572241,1747619446496,-400.0,0.00013698,2]
[361572242,1747619446505,-400.0,0.00013698,2]
[361572243,1747619446515,-1419.44,0.00013698,2]
[361572244,1747619446524,-400.0,0.00013698,2]
[361572245,1747619446533,-400.0,0.00013698,2]
[361572246,1747619446542,-400.0,0.00013698,2]
[361572247,1747619446552,-400.45691655,0.00013698,2]
[361572248,1747619446563,-400.0,0.00013698,2]
[361572249,1747619446572,-403.08576958,0.00013698,2]
[361572250,1747619446581,-1408.98,0.00013698,2]
[361572251,1747619446591,-7409.28,0.00013698,2]
[361572252,1747619446600,-400.0,0.00013698,2]
[361572253,1747619446610,-400.0,0.00013698,2]
[361572254,1747619446621,-400.0,0.00013698,2]